bitfinex/quotes_ETHUSD_20240821
["timestamp","ask_amount","ask_price","bid_price","bid_amount"]
[1724253587406,2.3876,2607.6,2607.2,3.83543]
[1724253587591,2.3876,2607.6,2607.1,3.83558]
[1724253588136,5.3876,2607.6,2607.1,3.83558]
[1724253588434,3.83519,2607.5,2606.7,7.67235]
[1724253588638,6.693316,2607.6,2606.9,3.83586]
[1724253588819,10.528356,2607.6,2607.0,3.83567]
[1724253589286,3.8351,2607.5,2606.9,7.67174]
[1724253589728,3.8351,2607.5,2607.0,3.83581]
[1724253589937,5.3876,2607.6,2607.2,3.83541]
[1724253590147,2.3876,2607.6,2607.3,3.83526]
[1724253590344,3.83523,2607.5,2607.3,0.07848098]
[1724253590503,6.09693,2607.4,2607.3,0.07848098]
[1724253590714,3.83548,2607.3,2606.8,3.8361]
[1724253591046,3.83548,2607.3,2606.9,0.07885831]
[1724253591246,22.00436674,2607.4,2606.9,3.91482831]
[1724253591549,25.83962674,2607.4,2606.9,3.91482831]
[1724253591698,3.83546,2607.3,2606.7,3.83615]
[1724253591898,3.83546,2607.3,2606.7,3.83613]
[1724253591899,6.80295467,2607.3,2606.7,3.83613]
[1724253592103,6.80295467,2607.3,2606.8,3.83604]
[1724253592305,6.80295467,2607.3,2606.9,3.83593]
[1724253592306,2.96749467,2607.3,2606.9,3.83593]
[1724253592501,22.00436674,2607.4,2606.2,0.3841]
[1724253592502,21.01115074,2607.4,2606.6,2.4206]
[1724253592736,21.01115074,2607.4,2607.2,3.83539]
[1724253593044,21.01115074,2607.4,2607.3,0.07844514]
[1724253593397,21.01115074,2607.4,2607.2,3.83539]
[1724253593607,21.01115074,2607.4,2607.3,0.07844514]
[1724253594131,21.01115074,2607.4,2607.2,3.83539]
[1724253594450,21.01115074,2607.4,2607.3,0.07844514]
[1724253595237,21.01115074,2607.4,2607.2,3.83539]
[1724253595728,21.01115074,2607.4,2607.3,0.07844514]
[1724253596135,15.18,2607.8,2607.3,0.39138351]
[1724253596136,30.92945074,2607.8,2607.3,0.39138351]
[1724253596317,2.4469,2608.0,2607.3,0.07844514]
[1724253596518,10.37836375,2608.3,2607.9,3.8345]
[1724253596839,10.71632375,2608.3,2607.7,3.83467]
[1724253597040,3.83407,2608.2,2607.7,3.83467]
[1724253597204,4.63988075,2608.2,2607.8,0.07797365]
[1724253597556,2.354,2607.8,2607.3,3.83527]
[1724253597857,2.354,2607.8,2607.1,3.83557]
[1724253597858,3.8348,2607.7,2607.4,0.07835083]
[1724253598057,24.93814074,2607.8,2607.4,0.07835083]
[1724253598201,3.83494,2607.6,2607.1,3.83558]
[1724253598563,28.77290074,2607.8,2607.1,3.83558]
[1724253598720,21.10345074,2607.8,2607.3,3.83526]
[1724253599101,21.10345074,2607.8,2607.4,0.07835083]
[1724253599486,21.10345074,2607.8,2607.3,3.83526]
[1724253599487,24.93811074,2607.8,2607.3,3.83526]
[1724253599608,3.83511,2607.5,2607.0,3.83579]
[1724253599807,3.83511,2607.5,2607.4,0.07835083]
[1724253599808,4.218621,2607.5,2607.4,0.07835083]
[1724253600111,3.83538,2607.3,2606.7,3.83617]
[1724253600310,3.97,2607.1,2606.3,3.83678]
[1724253600649,2.2869,2607.3,2606.7,3.83612]
[1724253600859,2.2869,2607.3,2606.8,3.83597]
[1724253601016,2.2869,2607.3,2606.8,3.91488682]
[1724253601219,2.9374651,2607.3,2606.8,0.07891682]
[1724253601564,2.9374651,2607.3,2606.6,3.83629]
[1724253601760,6.7728551,2607.3,2606.8,3.83609]
[1724253601907,2.9374651,2607.3,2606.8,3.83603]
[1724253602108,3.83554,2607.2,2606.9,0.0788532]
[1724253602347,1.06084951,2607.1,2606.9,0.0788532]
[1724253602525,4.89655951,2607.1,2606.5,3.83644]
[1724253603010,4.89655951,2607.1,2606.6,3.91546627]
[1724253603411,1.06084951,2607.1,2606.7,3.83626]
[1724253603617,1.06084951,2607.1,2606.8,3.83611]
[1724253603907,2.3326,2607.6,2607.3,3.8353]
[1724253604113,2.3326,2607.6,2607.3,3.83531]
[1724253604338,2.3326,2607.6,2607.4,0.07838156]
[1724253604554,2.56586,2607.6,2607.4,0.07838156]
[1724253604703,10.37082,2607.6,2606.9,3.83587]
[1724253604908,14.24306,2607.6,2607.5,0.07828725]
[1724253605184,2.3698,2607.1,2606.7,3.8362]
[1724253605609,2.3698,2607.1,2606.8,0.07894755]
[1724253605741,0.620535,2607.0,2606.8,0.07894755]
[1724253605944,0.620535,2607.0,2606.6,3.83634]
[1724253606145,4.456365,2607.0,2606.7,0.07904191]
[1724253606497,4.456365,2607.0,2606.5,3.83648]
[1724253606498,0.620535,2607.0,2606.5,3.83648]
[1724253607156,4.456395,2607.0,2606.5,3.83648]
[1724253607363,0.6826195,2606.9,2606.6,0.07913627]
[1724253608240,23.26804024,2606.9,2606.6,0.07913627]
[1724253608444,3.83626,2606.7,2606.1,3.83701]
[1724253608680,3.83626,2606.7,2605.9,3.83737]
[1724253608681,22.58571074,2606.7,2605.9,3.83732]
[1724253608931,22.58571074,2606.7,2606.2,0.0795138]
[1724253609091,22.58571074,2606.7,2605.2,5.90399]
[1724253609092,3.83685,2606.3,2605.6,3.83779]
[1724253609463,3.83709,2606.2,2605.7,0.07998588]
[1724253609664,2.465,2606.1,2605.7,0.07998588]
[1724253609858,21.21445074,2606.1,2605.7,0.07998588]
[1724253610059,2.50515407,2606.0,2605.7,0.07998588]
[1724253610266,2.50515407,2606.0,2605.5,3.83794]
[1724253610657,25.05161074,2606.1,2605.6,3.83787]
[1724253610658,21.21445074,2606.1,2605.6,3.83787]
[1724253611245,21.21445074,2606.1,2605.9,3.83731]
[1724253611496,7.33,2606.4,2606.0,3.83726]
[1724253612049,7.33,2606.4,2606.1,0.08137588]
[1724253613595,7.33,2606.4,2605.6,3.83777]
[1724253613596,3.837,2606.2,2605.6,3.83777]
[1724253614007,3.837,2606.2,2605.7,0.08153825]
[1724253614293,3.83695,2606.3,2605.7,0.08153825]
[1724253614461,2.3745,2606.2,2605.7,3.91916825]
[1724253615310,2.3745,2606.2,2605.7,0.08153825]
[1724253615616,9.18444507,2606.4,2605.8,3.83747]
[1724253615916,7.33,2606.4,2605.9,3.8374]
[1724253616071,7.33,2606.4,2606.0,3.83721]
[1724253616270,7.33,2606.4,2606.0,3.91846499]
[1724253616467,7.33,2606.4,2606.1,3.83713]
[1724253616731,7.33,2606.4,2606.2,0.3918385]
[1724253616867,7.33,2606.4,2606.1,3.83713]
[1724253616868,7.33,2606.4,2606.1,3.83706]
[1724253617068,7.33,2606.4,2606.3,0.08098204]
[1724253617298,15.05090074,2606.6,2606.1,3.83706]
[1724253617468,3.0,2606.5,2606.1,3.83706]
[1724253617703,3.0,2606.5,2606.2,3.83697]
[1724253618038,3.0,2606.5,2606.1,3.83705]
[1724253618327,3.0,2606.5,2606.3,0.08098204]
[1724253618534,3.0,2606.5,2606.2,0.08107643]
[1724253618832,3.0,2606.5,2606.3,0.08098204]
[1724253619035,3.0,2606.5,2606.1,3.83705]
[1724253619184,3.0,2606.5,2606.4,0.08088765]
[1724253619387,13.77731993,2606.5,2606.4,0.08088765]
[1724253619584,3.83709,2606.2,2605.6,3.83775]
[1724253619913,3.8369,2606.3,2605.7,3.9192685]
[1724253620232,3.83752,2605.9,2605.4,3.8381]
[1724253620635,3.83739,2606.0,2605.4,3.83803]
[1724253620944,3.83739,2606.0,2605.5,0.08173739]
[1724253621100,3.83761,2605.8,2605.5,0.08173739]
[1724253621299,3.83761,2605.8,2605.3,3.83832]
[1724253621517,3.83761,2605.8,2605.6,0.08164294]
[1724253621683,3.83744,2605.9,2605.4,3.83817]
[1724253621888,3.83744,2605.9,2605.7,0.08153314]
[1724253622110,3.83759,2605.8,2605.2,3.83838]
[1724253622433,2.3714,2605.7,2605.0,3.83868]
[1724253622738,2.3714,2605.7,2605.2,3.8384]
[1724253622887,3.83821,2605.4,2604.8,3.83896]
[1724253623435,4.07503,2605.6,2605.0,3.83869]
[1724253623436,11.40508,2605.6,2605.0,3.83869]
[1724253623738,11.40508,2605.6,2605.3,3.83829]
[1724253623739,7.33,2605.6,2605.3,3.83829]
[1724253624036,7.33,2605.6,2605.1,7.67708]
[1724253624339,15.00602,2605.6,2605.0,3.83873]
[1724253624629,11.16801,2605.6,2605.0,3.83873]
[1724253625336,15.00596,2605.6,2605.0,3.83873]
[1724253625536,8.830596,2605.6,2604.9,3.83878]
[1724253625738,3.83883,2605.0,2604.3,6.12701]
[1724253625946,2.3417,2605.4,2604.4,3.83952]
[1724253625947,3.83899,2604.9,2604.4,3.83952]
[1724253626233,3.83899,2604.9,2604.3,3.8397]
[1724253626234,3.83899,2604.9,2604.3,7.67942]
[1724253626434,3.83899,2604.9,2604.4,3.83963]
[1724253626731,3.83871,2605.1,2604.5,3.8395]
[1724253627188,7.67742,2605.1,2604.5,3.8395]
[1724253627529,7.33,2605.2,2604.5,3.83942]
[1724253627741,3.0,2605.1,2604.7,3.83913]
[1724253627921,7.33,2605.2,2604.9,3.83882]
[1724253628102,11.21445074,2605.3,2605.0,3.83866]
[1724253628307,11.21445074,2605.3,2604.8,0.383913]
[1724253628644,3.8373,2606.0,2605.4,3.8381]
[1724253628781,3.8373,2606.0,2605.5,3.838]
[1724253628982,6.21399,2606.1,2605.5,7.67595]
[1724253629421,10.05124,2606.1,2605.5,3.83795]
[1724253629581,6.21395,2606.1,2605.5,3.83795]
[1724253629782,2.3767,2606.1,2605.5,4.221735]
[1724253630103,2.3767,2606.1,2605.7,3.83771]
[1724253630308,2.3893,2606.5,2605.6,0.07675692]
[1724253630515,7.33,2607.0,2606.2,3.83696]
[1724253630516,2.3893,2606.8,2606.2,3.83696]
[1724253630716,2.3893,2606.8,2606.2,4.604384]
[1724253631002,2.3893,2606.8,2606.3,0.08096667]
[1724253632164,9.22542,2606.8,2606.3,0.12880599]
[1724253632859,3.83628,2606.7,2606.3,0.12880599]
[1724253633061,5.3893,2606.8,2606.3,0.12880599]
[1724253634055,6.92056684,2607.1,2606.3,0.60211899]
[1724253634257,6.31882,2607.1,2606.3,0.60211899]
[1724253634572,3.83572,2607.1,2606.5,3.8365]
[1724253634867,3.83572,2607.1,2606.5,4.6511373]
[1724253635015,3.83572,2607.1,2606.6,0.12838807]
[1724253636055,3.83572,2607.1,2606.4,3.83656]
[1724253636428,7.67152,2607.1,2606.4,3.83656]
[1724253636648,7.33,2607.2,2606.2,3.83693]
[1724253636649,2.2689,2606.8,2606.2,3.83693]
[1724253636830,2.2689,2606.8,2606.0,7.67436]
[1724253636831,4.446848,2606.7,2606.0,7.67436]
[1724253637157,8.283248,2606.7,2606.1,0.12874629]
[1724253637561,3.0,2606.6,2606.1,0.12874629]
[1724253637774,3.83695,2606.3,2606.1,0.12874629]
[1724253637969,3.83695,2606.3,2605.6,3.83781]
[1724253637970,4.220795,2606.2,2605.6,3.83781]
[1724253638307,3.83695,2606.3,2605.5,2.3542]
[1724253638308,7.33,2606.4,2605.8,3.83759]
[1724253638565,11.16679,2606.4,2605.8,3.83759]
[1724253638710,7.33,2606.4,2605.8,3.8375]
[1724253638915,7.33,2606.4,2605.9,3.83734]
[1724253639162,11.16671,2606.4,2605.8,3.8375]
[1724253639327,13.78848207,2606.4,2605.8,3.83749]
[1724253639524,7.33,2606.8,2605.9,2.3802]
[1724253640267,3.8367,2606.5,2605.8,3.83757]
[1724253640559,2.4519,2606.6,2606.1,3.83705]
[1724253640770,7.33,2606.8,2606.2,3.83691]
[1724253640930,3.0,2606.7,2606.0,3.8372]
[1724253641138,4.86955,2606.6,2605.8,3.83749]
[1724253641315,3.83686,2606.3,2605.7,3.83772]
[1724253641517,9.17395,2606.5,2605.8,3.83757]
[1724253641853,3.83671,2606.4,2605.8,3.83757]
[1724253642017,5.3373,2606.5,2605.9,3.83744]
[1724253642212,5.3373,2606.5,2605.8,3.83757]
[1724253642213,9.17387,2606.5,2605.8,3.83757]
[1724253642519,5.241054,2606.4,2605.8,3.83757]
[1724253643235,5.241054,2606.4,2605.8,3.83749]
[1724253643636,1.404334,2606.4,2605.8,3.83747]
[1724253643849,5.3373,2606.5,2605.9,3.83741]
[1724253644154,3.0,2606.5,2606.2,3.83692]
[1724253644475,3.0,2606.7,2606.2,3.83692]
[1724253644682,8.185797,2606.7,2606.0,3.8372]
[1724253644821,4.349527,2606.7,2606.0,3.83719]
[1724253645017,4.349527,2606.7,2606.1,3.83711]
[1724253645518,3.0,2606.7,2606.1,3.83711]
[1724253645824,7.33,2606.8,2606.2,3.8369]
[1724253646273,7.33,2606.8,2606.3,3.83685]
[1724253646421,7.33,2606.8,2606.4,3.83669]
[1724253646624,7.33,2606.8,2606.4,4.603959]
[1724253646822,7.33,2606.8,2606.4,3.8366]
[1724253647572,7.33,2606.8,2606.3,3.83683]
[1724253647731,7.33,2606.8,2606.4,3.8367]
[1724253648448,7.33,2606.8,2606.2,3.83688]
[1724253648635,7.33,2606.8,2606.3,0.632818]
[1724253648838,7.33,2606.8,2606.3,4.469568]
[1724253649060,7.33,2606.8,2606.4,3.8367]
[1724253649330,7.33,2606.8,2606.4,3.96510118]
[1724253649529,7.33,2606.8,2606.4,3.96502118]
[1724253649730,7.33,2606.8,2606.5,0.45978392]
[1724253649935,3.8359,2607.0,2606.5,0.58808887]
[1724253650280,29.57739074,2607.1,2606.5,0.58808887]
[1724253650497,23.39445074,2607.1,2606.7,3.83625]
[1724253650649,3.0,2607.3,2606.6,2.44420873]
[1724253650852,2.2734,2607.5,2606.7,0.298072]
[1724253651088,3.83548,2607.3,2606.7,4.134332]
[1724253651393,3.83555,2607.2,2606.8,0.12801631]
[1724253651748,3.8359,2607.0,2606.4,3.8366]
[1724253651952,10.03772,2607.0,2606.9,0.12792012]
[1724253652150,3.83607,2606.9,2606.3,3.83685]
[1724253652390,6.2018,2607.0,2606.2,3.83689]
[1724253652391,3.83622,2606.8,2606.2,3.83689]
[1724253652568,3.83622,2606.8,2606.4,0.12819117]
[1724253652924,2.4067,2606.5,2605.6,2.439]
[1724253653053,3.0,2606.7,2605.6,2.439]
[1724253653247,3.0,2606.7,2606.1,3.83702]
[1724253653481,3.0,2606.7,2606.4,3.8367]
[1724253653684,5.4067,2606.8,2606.4,3.8367]
[1724253653889,4.219185,2607.2,2606.6,3.83634]
[1724253654048,3.0,2607.1,2606.6,3.83632]
[1724253654978,3.0,2607.1,2606.6,7.67265]
[1724253655219,3.0,2607.1,2606.6,3.83632]
[1724253655634,3.0,2607.1,2606.7,3.83625]
[1724253655795,3.0,2607.1,2606.6,3.83632]
[1724253656398,3.83533,2607.4,2606.8,3.83604]
[1724253656641,6.83541,2607.3,2606.8,3.83604]
[1724253656937,3.83555,2607.2,2606.6,10.926803]
[1724253657091,3.83555,2607.2,2606.7,3.83625]
[1724253657291,3.83555,2607.2,2606.7,4.9289223]
[1724253657999,3.83555,2607.2,2606.6,3.83628]
[1724253658229,3.83555,2607.2,2606.7,3.83619]
[1724253659041,3.83597,2606.9,2606.4,3.83668]
[1724253659397,3.83597,2606.9,2606.4,3.83662]
[1724253659598,3.83559,2607.2,2606.7,3.83617]
[1724253659792,3.83559,2607.2,2606.7,7.67229]
[1724253660039,17.48039074,2607.4,2606.8,3.83611]
[1724253660223,17.48039074,2607.4,2606.9,3.83586]
[1724253660224,3.0,2607.3,2606.9,3.83586]
[1724253660421,3.0,2607.3,2606.8,3.83611]
[1724253660422,3.0,2607.3,2607.0,3.83582]
[1724253660740,6.83515,2607.5,2607.0,3.83582]
[1724253660950,8.496715,2607.5,2607.0,3.83582]
[1724253661108,6.83515,2607.5,2607.0,3.83582]
[1724253661313,3.0,2607.5,2607.1,3.8356]
[1724253661528,3.0,2607.5,2607.2,3.83543]
[1724253661819,3.0,2607.5,2606.9,3.83589]
[1724253661941,3.83534,2607.4,2606.7,3.83617]
[1724253662147,3.83576,2607.1,2606.5,3.83644]
[1724253662317,2.2937,2607.3,2606.3,3.83677]
[1724253662511,2.2937,2607.3,2606.5,3.83646]
[1724253662512,5.2937,2607.3,2606.5,3.83646]
[1724253662744,3.83576,2607.1,2606.6,3.83637]
[1724253662950,3.83604,2606.9,2606.3,3.83675]
[1724253663134,3.83604,2606.9,2606.4,3.8367]
[1724253663328,3.83628,2606.7,2606.2,3.83692]
[1724253663670,0.383576,2607.0,2606.0,6.3276]
[1724253663671,3.83651,2606.6,2606.0,6.3276]
[1724253663816,3.83658,2606.5,2606.0,7.67442]
[1724253664019,10.10774,2606.6,2606.0,3.83715]
[1724253664329,3.83651,2606.6,2606.2,3.837]
[1724253664529,7.33,2607.0,2606.4,3.83669]
[1724253664911,11.1659,2607.0,2606.5,3.83656]
[1724253665232,11.1659,2607.0,2606.5,0.12793096]
[1724253665428,3.83605,2606.9,2606.5,0.12793096]
[1724253665990,3.83628,2606.7,2606.5,0.12793096]
[1724253666442,7.33,2607.0,2606.4,3.83667]
[1724253666763,7.33,2607.0,2606.6,3.83634]
[1724253667120,7.33,2607.0,2606.7,0.12773853]
[1724253667437,18.05015074,2607.1,2606.9,3.83596]
[1724253667438,14.21445074,2607.1,2606.9,3.83596]
[1724253667740,2.4298,2607.5,2607.1,3.83559]
[1724253667930,3.83503,2607.6,2607.1,3.83559]
[1724253668144,2.4298,2607.9,2607.3,3.83531]
[1724253668377,2.4298,2607.9,2607.2,3.96276757]
[1724253668641,4.13783242,2607.8,2607.4,0.12706525]
[1724253668844,6.2643,2607.9,2607.5,0.12696909]
[1724253669337,3.83422,2608.1,2607.6,3.83492]
[1724253669489,6.28984,2608.3,2607.6,3.96179295]
[1724253670010,3.83394,2608.3,2607.6,3.96179295]
[1724253670184,3.83416,2608.2,2607.6,3.96179295]
[1724253670369,4.217334,2608.3,2607.6,3.96179295]
[1724253670370,3.83421,2608.1,2607.6,0.12687295]
[1724253670571,7.66852,2608.1,2607.6,0.12687295]
[1724253670948,3.8345,2607.9,2607.6,0.12687295]
[1724253671148,3.8345,2607.9,2607.4,3.83513]
[1724253671463,7.66853,2608.1,2607.7,0.12619305]
[1724253671680,9.0113624,2608.1,2607.4,7.67026]
[1724253671861,9.0113624,2608.1,2607.8,0.12609692]
[1724253672065,9.0113724,2608.1,2607.8,0.12609692]
[1724253672276,7.6685,2608.1,2607.5,3.83508]
[1724253672592,3.83435,2608.0,2607.9,0.12603662]
[1724253672745,3.83421,2608.1,2607.5,3.83508]
[1724253672946,3.83436,2608.0,2607.9,0.12603662]
[1724253673150,3.83451,2607.9,2607.3,3.83528]
[1724253673401,3.83451,2607.9,2607.3,3.83536]
[1724253673545,3.83465,2607.8,2607.2,9.97467]
[1724253673747,3.83465,2607.8,2607.3,3.83538]
[1724253674248,3.83437,2608.0,2607.4,7.67046]
[1724253674461,18.54445074,2608.1,2607.4,0.997426]
[1724253674661,18.54445074,2608.1,2607.6,3.83481]
[1724253675190,22.37874074,2608.1,2607.5,3.83506]
[1724253675389,3.83444,2608.0,2607.5,3.83505]
[1724253675689,22.37874074,2608.1,2607.4,3.8351]
[1724253676192,22.37874074,2608.1,2607.6,3.83491]
[1724253676350,25.33835221,2608.1,2607.6,3.83491]
[1724253676556,29.17264221,2608.1,2607.6,3.83491]
[1724253676937,25.33835221,2608.1,2607.4,3.8351]
[1724253677270,3.83442,2608.0,2607.5,3.835]
[1724253678198,7.33,2608.1,2607.6,3.8349]
[1724253678365,15.04853074,2608.2,2607.7,2.4538]
[1724253678366,11.21445074,2608.2,2607.7,2.4538]
[1724253678567,11.21445074,2608.2,2607.8,3.83455]
[1724253678744,11.21445074,2608.2,2607.8,7.79474078]
[1724253679520,18.54445074,2608.4,2608.2,3.83404]
[1724253679698,6.83342,2608.7,2608.2,3.83404]
[1724253679844,9.054166,2608.7,2608.2,3.83404]
[1724253680279,9.054166,2608.7,2608.0,3.83425]
[1724253680280,3.83358,2608.6,2608.3,0.12514023]
[1724253680593,9.054156,2608.7,2608.0,3.83425]
[1724253680594,3.0,2608.5,2608.0,3.83425]
[1724253680829,3.0,2608.6,2608.0,4.601129]
[1724253680966,3.0,2608.6,2608.2,3.83404]
[1724253681164,3.0,2608.6,2608.2,6.28784]
[1724253681374,3.0,2608.6,2608.3,0.12514023]
[1724253682153,6.83347,2608.6,2608.3,0.12514023]
[1724253682387,6.83347,2608.6,2608.1,3.83419]
[1724253682550,6.83347,2608.6,2608.4,0.12504415]
[1724253682769,3.0,2608.6,2608.2,3.83404]
[1724253682983,3.0,2608.6,2608.5,0.12494807]
[1724253683199,3.0,2608.6,2608.3,3.8339]
[1724253683511,7.33,2608.8,2608.5,0.12494807]
[1724253683700,11.21445074,2608.9,2608.6,3.83337]
[1724253684198,11.21445074,2608.9,2608.6,3.95822199]
[1724253685469,11.21445074,2608.9,2608.7,3.83332]
[1724253685693,11.21445074,2608.9,2608.8,0.12404079]
[1724253686016,6.83277,2609.1,2608.7,3.83332]
[1724253686180,3.0,2609.1,2608.8,3.95721079]
[1724253686506,11.21445074,2609.4,2608.8,3.95712079]
[1724253686711,15.04682074,2609.4,2608.9,3.83294]
[1724253686866,15.04682074,2609.4,2608.9,3.9568336]
[1724253687817,3.83244,2609.3,2608.9,0.1238936]
[1724253689886,3.83284,2609.1,2608.9,0.1238936]
[1724253690092,3.83288,2609.0,2608.9,0.1238936]
[1724253690301,3.83284,2609.1,2608.5,3.83361]
[1724253690516,3.83259,2609.2,2608.5,3.83361]
[1724253690705,3.83276,2609.1,2608.7,3.83325]
[1724253691030,5.96133907,2609.3,2608.8,0.12341668]
[1724253691031,7.66513,2609.3,2608.8,0.12341668]
[1724253691355,11.21445074,2609.4,2608.8,0.51908335]
[1724253691489,11.21445074,2609.4,2608.8,3.83308]
[1724253691833,7.66508,2609.3,2608.9,0.12332063]
[1724253692029,3.83252,2609.3,2608.9,0.12332063]
[1724253692790,10.33,2609.6,2608.9,0.12332063]
[1724253692791,7.33,2609.6,2608.9,0.12332063]
[1724253693029,11.16207,2609.6,2609.1,3.83265]
[1724253693238,9.56765207,2609.6,2608.9,3.95626063]
[1724253693399,3.83245,2609.3,2609.2,0.12295071]
[1724253693598,3.83262,2609.2,2608.8,2.4718]
[1724253693840,3.83262,2609.2,2608.7,3.8332]
[1724253694037,3.83262,2609.2,2608.9,0.12322859]
[1724253694225,6.33026,2609.4,2608.8,3.95648464]
[1724253694425,3.83251,2609.3,2609.0,0.12313255]
[1724253694598,6.33026,2609.4,2608.9,0.12322859]
[1724253694599,3.83278,2609.1,2608.9,0.12322859]
[1724253694807,3.83278,2609.1,2608.5,10.06057]
[1724253695835,3.83278,2609.1,2608.5,6.22703]
[1724253696172,5.55679121,2609.4,2608.2,2.3367]
[1724253696445,3.83377,2608.4,2607.9,7.66881]
[1724253696647,3.83351,2608.6,2607.9,3.83438]
[1724253696870,3.83351,2608.6,2607.6,2.3367]
[1724253697156,18.54445074,2608.7,2608.1,2.3063]
[1724253697300,18.54445074,2608.7,2608.3,3.83383]
[1724253697494,18.54445074,2608.7,2608.4,3.83362]
[1724253697761,18.54445074,2608.7,2608.1,2.3063]
[1724253697762,2.4403,2609.2,2608.8,3.83309]
[1724253697914,0.80546912,2609.3,2608.9,3.83293]
[1724253698097,12.75208121,2609.4,2608.9,7.66588]
[1724253698098,8.91979121,2609.4,2608.9,7.66588]
[1724253698293,16.87195207,2609.6,2609.1,3.8327]
[1724253698618,14.41765207,2609.6,2608.9,3.83293]
[1724253698827,14.41765207,2609.6,2608.7,6.10559]
[1724253698828,12.18,2609.6,2609.1,7.66527]
[1724253699156,7.33,2609.7,2609.3,3.83243]
[1724253699315,7.33,2609.7,2609.4,3.83222]
[1724253699490,6.8889104,2609.9,2609.4,3.83222]
[1724253699938,6.8889104,2609.9,2609.3,7.66479]
[1724253700185,6.28785,2609.9,2609.4,3.83227]
[1724253700396,11.21445074,2610.0,2609.5,3.83208]
[1724253700556,11.21445074,2610.0,2609.6,3.83199]
[1724253701349,2.4348,2610.2,2609.6,4.59832]
[1724253701554,7.33,2610.3,2609.9,3.83147]
[1724253701864,11.16057,2610.6,2610.1,3.83124]
[1724253702178,3.83041,2610.7,2610.1,3.83116]
[1724253702505,3.83108,2610.3,2609.5,3.83205]
[1724253702661,6.11816,2610.5,2609.7,3.83177]
[1724253703209,3.0,2610.4,2609.7,3.83177]
[1724253703379,6.83083,2610.4,2609.7,3.83174]
[1724253703916,3.83102,2610.3,2609.7,3.83174]
[1724253704075,3.83126,2610.2,2609.4,2.2818]
[1724253704280,3.83161,2609.9,2609.8,0.12156706]
[1724253704593,3.8321,2609.6,2609.0,3.83276]
[1724253704905,3.83223,2609.5,2609.0,3.83276]
[1724253705106,3.83232,2609.4,2608.8,6.2162]
[1724253705317,3.83232,2609.4,2608.8,6.21618]
[1724253705455,3.83208,2609.6,2609.0,3.83287]
[1724253705661,3.83208,2609.6,2609.0,3.83279]
[1724253705905,3.83215,2609.5,2609.0,3.83279]
[1724253706190,3.83243,2609.4,2608.8,6.21619]
[1724253706394,3.83253,2609.3,2608.6,3.83338]
[1724253706608,3.83253,2609.3,2608.7,3.83328]
[1724253707010,6.16903,2609.7,2609.0,3.83278]
[1724253707311,14.99331,2609.9,2609.3,3.83244]
[1724253707508,3.83191,2609.7,2609.1,3.83263]
[1724253707918,3.83191,2609.7,2609.2,3.83255]
[1724253708263,3.0,2609.8,2609.3,3.83241]
[1724253708498,7.33,2609.9,2609.4,3.83221]
[1724253708697,11.16159,2609.9,2609.3,7.66475]
[1724253708966,11.16159,2609.9,2609.3,3.83234]
[1724253709162,7.33,2609.9,2609.4,3.83229]
[1724253709399,7.33,2609.9,2609.5,0.383229]
[1724253709601,11.16159,2609.9,2609.4,3.83218]
[1724253709913,11.16159,2609.9,2609.6,0.12175904]
[1724253710065,3.83159,2609.9,2609.5,0.12185504]
[1724253710419,11.21445074,2610.0,2609.5,0.12185504]
[1724253710566,15.04588074,2610.0,2609.5,3.95388504]
[1724253711114,3.83172,2609.8,2609.5,0.12185504]
[1724253711505,3.83208,2609.6,2609.0,6.19459]
[1724253711664,3.83208,2609.6,2608.8,7.66613]
[1724253712015,3.83232,2609.4,2608.9,3.833]
[1724253712245,3.83232,2609.4,2608.9,3.95543118]
[1724253712568,3.83247,2609.3,2608.9,0.12243118]
[1724253712879,3.83247,2609.3,2608.7,6.27552]
[1724253713079,7.6653,2609.2,2608.7,3.83322]
[1724253713287,3.83262,2609.2,2608.8,0.12252723]
[1724253713666,3.83262,2609.2,2608.7,3.83321]
[1724253713869,3.83262,2609.2,2608.9,0.12262028]
[1724253714070,3.83262,2609.2,2608.8,0.12271633]
[1724253714426,3.83262,2609.2,2608.9,0.12282989]
[1724253714938,3.8334,2608.7,2608.1,3.83411]
[1724253715069,3.83348,2608.6,2608.0,3.83427]
[1724253715427,3.83348,2608.6,2608.1,0.12405856]
[1724253715428,3.83385,2608.4,2608.1,0.12405856]
[1724253715904,3.83385,2608.4,2607.7,0.23367]
[1724253715905,3.83406,2608.2,2607.7,0.23367]
[1724253716268,3.8344,2608.0,2607.5,2.4601]
[1724253716524,2.825448,2608.6,2606.6,6.4368176]
[1724253716525,3.8348,2607.7,2607.0,3.8357]
[1724253716680,3.83475,2607.8,2607.0,3.8357]
[1724253716868,3.83475,2607.8,2607.2,3.8355]
[1724253717069,3.83437,2608.0,2607.3,3.83538]
[1724253717265,6.83366,2608.5,2607.7,3.83467]
[1724253717266,3.83394,2608.3,2607.7,3.83467]
[1724253717568,3.83394,2608.3,2607.2,0.76712]
[1724253717569,3.83456,2607.9,2607.2,4.60258]
[1724253717766,3.83422,2608.1,2607.4,3.83522]
[1724253718007,3.0,2608.2,2607.6,3.83494]
[1724253718203,2.3074,2608.4,2607.8,3.83463]
[1724253718750,6.14121,2608.4,2607.8,3.83463]
[1724253719020,3.83349,2608.6,2608.0,3.83421]
[1724253719322,3.83363,2608.5,2607.8,3.83454]
[1724253719615,3.83363,2608.5,2607.9,4.217924]
[1724253720121,6.13275,2608.8,2608.1,3.8341]
[1724253720322,3.83325,2608.8,2608.2,3.83395]
[1724253720632,5.286,2608.7,2607.5,4.218572]
[1724253720771,3.83444,2608.0,2607.3,3.83527]
[1724253720970,3.83444,2608.0,2607.3,7.67053]